Workbook

Sheet ACCUEIL

Sheet TableauBord
E2: COMPARATEUR DE CANDIDATS
C6: DANS QUELLE CATEGORIE SOUHAITEZ VOUS FAIRE UNE COMPARAISON ? | R6: CLUB
D9: JOUEUR 1 | I9: JOUEUR 2
B14: EFFECTIFS | C14: Gardiens | D14: Joueurs 2007 - 2008 | E14: Joueurs 2009 - 2010 | F14: Total | J14: MOYENNES RESULTATS | K14: Gardiens | L14: Joueurs 2007 - 2008 | M14: Joueurs 2009 - 2010 | N14: Total
B15: Nombres de candidats : | C15: 9 | D15: 4 | E15: 43 | F15: =SUM(C15:E15) -> 56
J16: Jongles Pied Gauche | K16: 43.67 | L16: 41.45 | M16: 58.12 | N16: =AVERAGE(K16:M16) -> 47.74666667
B17: Pieds : | J17: Jongles Pied Droit | K17: 23.89 | L17: 57.19 | M17: 52.98 | N17: =AVERAGE(K17:M17) -> 44.68666667
B18: Droitiers | C18: 8 | D18: 4 | E18: 32 | F18: =SUM(C18:E18) -> 44 | J18: Jongles Tête | L18: 61.66 | M18: 55.47 | N18: =AVERAGE(L18:M18) -> 58.565
B19: Gauchers | C19: 1 | D19: 0 | E19: 11 | F19: =SUM(C19:E19) -> 12 | J19: Note Jonglerie | K19: 31 | L19: 46.5 | M19: 47.19 | N19: =AVERAGE(K19:M19) -> 41.56333333
B21: Régime : | J21: Vitesse
B22: Interne | C22: 7 | D22: 4 | E22: 38 | F22: =SUM(C22:E22) -> 49 | J22: 10 mètres
B23: Demi - Pensionnaire | C23: 2 | D23: 0 | E23: 5 | F23: =SUM(C23:E23) -> 7 | J23: Essai 1 | K23: 1.89 | L23: 1.97 | M23: 1.87 | N23: =AVERAGE(K23:M23) -> 1.91
J24: Essai 2 | K24: 1.89 | L24: 1.92 | M24: 1.92 | N24: =AVERAGE(K24:M24) -> 1.91
B25: Année de naissance : | J25: Note 10 mètre | K25: 6.44 | L25: 4 | M25: 7.02 | N25: =AVERAGE(K25:M25) -> 5.82
B26: Année 2007 | C26: 1 | D26: 0 | F26: =SUM(C26:E26) -> 1 | J26: 40 mètres
B27: Année 2008 | C27: 2 | D27: 4 | F27: =SUM(C27:E27) -> 6 | J27: Essai 1 | K27: 6.19 | L27: 6.06 | M27: 5.99 | N27: =AVERAGE(K27:M27) -> 6.08
B28: Année 2009 | C28: 6 | E28: 43 | F28: 49 | J28: Essai 2 | K28: 5.91 | L28: 6.13 | M28: 5.96 | N28: =AVERAGE(K28:M28) -> 6
B29: Année 2010 | C29: 0 | E29: 0 | F29: 0 | J29: Note 40 mètre | K29: 10.22 | L29: 9.5 | M29: 12.42 | N29: =AVERAGE(K29:M29) -> 10.71333333
B31: Niveau Scolaire : | J31: Distance | L31: 887.5 | M31: 720.23 | N31: =AVERAGE(L31:M31) -> 803.865
B32: A | C32: 2 | D32: 2 | E32: 14 | F32: =SUM(C32:E32) -> 18 | J32: Note Aérobie | L32: 10.81 | M32: 8.99 | N32: =AVERAGE(L32:M32) -> 9.9
B33: B | C33: 4 | D33: 0 | E33: 10 | F33: =SUM(C33:E33) -> 14 | J33: Note Tests Spécifiques | K33: 88 | N33: =AVERAGE(K33:M33) -> 88
B34: C | C34: 1 | D34: 1 | E34: 9 | F34: 11 | J34: Note Jeu Réduit | L34: 19.75 | M34: 29.3 | N34: =AVERAGE(L34:M34) -> 24.525
B35: D | C35: 2 | D35: 1 | E35: 8 | F35: 11 | J35: Note Jeu à 11 | K35: 29.44 | L35: 47.25 | M35: 57.65 | N35: =AVERAGE(K35:M35) -> 44.78
B36: E | C36: 0 | D36: 0 | E36: 2 | F36: 2 | J36: Note Générale | K36: 165.11 | L36: 137.81 | M36: 162.57 | N36: =AVERAGE(K36:M36) -> 155.1633333

Sheet Cartographie
B12: Pays | C12: Provinces | D12: Départements | E12: Nb de joueurs
B13: France | C13: Nouvelle-Aquitaine | E13: 3
B14: France | C14: Nouvelle-Aquitaine | E14: 12
B15: France | C15: Nouvelle-Aquitaine | E15: 19
B16: France | C16: Nouvelle-Aquitaine | E16: 1
B17: France | C17: Nouvelle-Aquitaine | E17: 2
B18: France | C18: Centre-Val de Loire | E18: 1
B19: France | C19: Pays de la Loire | E19: 4
B20: France | C20: Centre-Val de Loire | E20: 1
B21: France | C21: Nouvelle-Aquitaine | E21: 2
B22: France | C22: Pays de la Loire | E22: 2
B23: France | C23: Nouvelle-Aquitaine | E23: 9

Sheet RésultatsGardiens
D3: Date du jour : | E3: =TODAY() -> 2025-04-24 | G3: RÉSULTATS GARDIENS
H5: VITESSE
E6: Jonglerie | G6: Note | H6: 10 mètres | J6: Note | K6: 40 mètres | M6: Note | N6: Test Spec | O6: Jeu à 11 | P6: Général
A7: Nom Prénom | B7: CLUB | C7: Année | D7: Poste | E7: PG | F7: PD | G7: Jonglerie : /50 | H7: Essai 1 | I7: Essai 2 | J7: 10 mètres : /10 | K7: Essai 1 | L7: Essai 2 | M7: 40 mètres : /20 | N7: Test Spec : /120 | O7: Jeu à 11 : /50 | P7: Général : /250
A8: BLANCHE QUENTIN | B8: VAL D'ENVIGNE | C8: 2007 | D8: GARDIEN | E8: 31 | F8: 19 | G8: =IF(ROUNDUP(AVERAGE(E8:F8),0)>50,50,ROUNDUP(AVERAGE(E8:F8),0)) -> 25 | H8: 2.191812234 | I8: 2.167485674 | J8: =CalNoteVit($H$6,C8,H8,I8) -> 0 | K8: 5.512862601 | L8: 5.025805743 | M8: =CalNoteVit($K$6,C8,K8,L8) -> 20 | N8: 112 | O8: 45 | P8: =SUM(G8,J8,M8,N8,O8) -> 202
A9: BOBE DE BELLEVILLE LUCAS | B9: COGNAC UAC | C9: 2009 | D9: GARDIEN | E9: 12 | F9: 30 | G9: 21 | H9: 1.867654072 | I9: 1.84177511 | J9: =CalNoteVit($H$6,C9,H9,I9) -> 6 | K9: 6.540308707 | L9: 5.147260682 | M9: =CalNoteVit($K$6,C9,K9,L9) -> 20 | N9: 113 | O9: 39 | P9: 199
A10: HERVOUET LOUIS | B10: LA BAULE/ LE P. | C10: 2008 | D10: GARDIEN | E10: 93 | F10: 60 | G10: 50 | H10: 1.72996918 | I10: 1.743604534 | J10: =CalNoteVit($H$6,C10,H10,I10) -> 10 | K10: 6.404605085 | L10: 5.410105797 | M10: =CalNoteVit($K$6,C10,K10,L10) -> 18 | N10: 97 | O10: 18 | P10: 193
A11: JUIN CLEMENT | B11: ST LIGUAIRE NIORT | C11: 2008 | D11: GARDIEN | E11: 34 | F11: 13 | G11: 24 | H11: 1.877826802 | I11: 1.747625534 | J11: =CalNoteVit($H$6,C11,H11,I11) -> 10 | K11: 6.745770668 | L11: 6.474219456 | M11: =CalNoteVit($K$6,C11,K11,L11) -> 0 | N11: 100 | O11: 34 | P11: 168
A12: POGGI ANTOINE | B12: AVAILLES EN CH. | C12: 2009 | D12: GARDIEN | E12: 50 | F12: 25 | G12: 38 | H12: 1.78 | I12: 1.82 | J12: =CalNoteVit($H$6,C12,H12,I12) -> 10 | K12: 6.507245602 | L12: 6.344757062 | M12: =CalNoteVit($K$6,C12,K12,L12) -> 2 | N12: 65 | O12: 46 | P12: 161
A13: ROQUIER PAUL | B13: CHAMOIS | C13: 2009 | D13: GARDIEN | E13: 45 | F13: 15 | G13: 30 | H13: 1.769761431 | I13: 1.959098696 | J13: =CalNoteVit($H$6,C13,H13,I13) -> 10 | K13: 6.064467611 | L13: 6.642524089 | M13: =CalNoteVit($K$6,C13,K13,L13) -> 6 | N13: 91 | O13: 22 | P13: 159
A14: SIMON JONATHAN | B14: CHAMOIS | C14: 2009 | D14: GARDIEN | E14: 44 | F14: 9 | G14: 27 | H14: 1.834161338 | I14: 2.175038034 | J14: =CalNoteVit($H$6,C14,H14,I14) -> 0 | K14: 6.603137474 | L14: 6.538788458 | M14: =CalNoteVit($K$6,C14,K14,L14) -> 0 | N14: 83 | O14: 39 | P14: 149
A15: TESSIER SIMON | B15: AZAY CHEILLE 37 | C15: 2009 | D15: GARDIEN | E15: 36 | F15: 22 | G15: 29 | H15: 2.120333944 | I15: 1.94559491 | J15: =CalNoteVit($H$6,C15,H15,I15) -> 2 | K15: 5.125774563 | L15: 5.501667158 | M15: =CalNoteVit($K$6,C15,K15,L15) -> 20 | N15: 74 | O15: 12 | P15: 137
A16: TURGNE NICOLAS | B16: AIFFRES | C16: 2009 | D16: GARDIEN | E16: 48 | F16: 22 | G16: 35 | H16: 1.79668147 | I16: 1.606320398 | J16: =CalNoteVit($H$6,C16,H16,I16) -> 10 | K16: 6.228274084 | L16: 6.133496095 | M16: =CalNoteVit($K$6,C16,K16,L16) -> 6 | N16: 57 | O16: 10 | P16: 118

Sheet RésultatsJoueurs07-08
D3: Date du jour : | E3: =TODAY() -> 2025-04-24 | G3: RÉSULTATS JOUEURS 2007-2008
I5: VITESSE | Q5: Jeux
E6: Jonglerie | H6: Note | I6: 10 mètres | K6: Note | L6: 40 mètres | N6: Note | O6: Endurance | P6: Note | Q6: Jeu réduit | R6: Jeu à 11 | S6: Général
A7: Nom Prénom | B7: CLUB | C7: Année | D7: Poste | E7: PG | F7: PD | G7: T | H7: Jonglerie : /50 | I7: Essai 1 | J7: Essai 2 | K7: 10 mètres : /10 | L7: Essai 1 | M7: Essai 2 | N7: 40 mètres : /20 | O7: Distance | P7: Distance : /20 | Q7: Jeu réduit : /50 | R7: Jeu à 11 : /100 | S7: Général : /250
A8: CAPRADO REMY | B8: ROYAN | C8: 2008 | D8: D. C 5 | E8: 44.47188793 | F8: 67.40498506 | G8: 56.64232078 | H8: =IF(ROUNDUP(AVERAGE(E8:G8),0)>50,50,ROUNDUP(AVERAGE(E8:G8),0)) -> 50 | I8: 2.16493088 | J8: 2.143153365 | K8: =CalNoteVit($I$6,C8,I8,J8) -> 0 | L8: 5.709199266 | M8: 5.981080511 | N8: =CalNoteVit($L$6,C8,L8,M8) -> 12 | O8: 1600 | P8: =CalNoteEndurance(O8) -> 20 | Q8: 34 | R8: 59 | S8: =SUM(H8,K8,N8,P8,Q8,R8) -> 175
A9: GUACIDE GUILLAUME | B9: SU AGEN | C9: 2008 | D9: ATTAQUANT | E9: 75.9693725 | F9: 57.37985131 | G9: 70.85062776 | H9: =IF(ROUNDUP(AVERAGE(E9:G9),0)>50,50,ROUNDUP(AVERAGE(E9:G9),0)) -> 50 | I9: 2.052318908 | J9: 1.906159513 | K9: =CalNoteVit($I$6,C9,I9,J9) -> 4 | L9: 5.388502379 | M9: 6.073087806 | N9: =CalNoteVit($L$6,C9,L9,M9) -> 18 | O9: 970 | P9: =CalNoteEndurance(O9) -> 15.25 | Q9: 12 | R9: 64 | S9: =SUM(H9,K9,N9,P9,Q9,R9) -> 163.25
A10: MAROLLEAU ALEXANDRE | B10: ES SAINTES FOOT | C10: 2008 | D10: M L DT O | E10: 14.46677855 | F10: 59.14009347 | G10: 88.06288091 | H10: =IF(ROUNDUP(AVERAGE(E10:G10),0)>50,50,ROUNDUP(AVERAGE(E10:G10),0)) -> 50 | I10: 1.618799662 | J10: 1.675026247 | K10: =CalNoteVit($I$6,C10,I10,J10) -> 10 | L10: 6.339534879 | M10: 6.544084891 | N10: =CalNoteVit($L$6,C10,L10,M10) -> 0 | O10: 300 | P10: =CalNoteEndurance(O10) -> 0 | Q10: 16 | R10: 40 | S10: =SUM(H10,K10,N10,P10,Q10,R10) -> 116
A11: NASSIRI SYLVAIN | B11: NIORT ST FLORENT | C11: 2008 | D11: ATTAQ. | E11: 30.88142211 | F11: 44.85372091 | G11: 31.0935438 | H11: =IF(ROUNDUP(AVERAGE(E11:G11),0)>50,50,ROUNDUP(AVERAGE(E11:G11),0)) -> 36 | I11: 2.038259434 | J11: 1.939142592 | K11: =CalNoteVit($I$6,C11,I11,J11) -> 2 | L11: 6.786264922 | M11: 5.933953821 | N11: =CalNoteVit($L$6,C11,L11,M11) -> 8 | O11: 680 | P11: =CalNoteEndurance(O11) -> 8 | Q11: 17 | R11: 26 | S11: =SUM(H11,K11,N11,P11,Q11,R11) -> 97

Sheet RésultatsJoueurs09-10
D3: Date du jour : | E3: =TODAY() -> 2025-04-24 | G3: RÉSULTATS JOUEURS 2009-2010
I5: VITESSE | Q5: Jeux
E6: Jonglerie | H6: Note | I6: 10 mètres | K6: Note | L6: 40 mètres | N6: Note | O6: Endurance | P6: Note | Q6: Jeu réduit | R6: Jeu à 11 | S6: Général
A7: Nom Prénom | B7: CLUB | C7: Année | D7: Poste | E7: PG | F7: PD | G7: T | H7: Jonglerie : /50 | I7: Essai 1 | J7: Essai 2 | K7: 10 mètres : /10 | L7: Essai 1 | M7: Essai 2 | N7: 40 mètres : /20 | O7: Distance | P7: Distance : /20 | Q7: Jeu réduit : /50 | R7: Jeu à 11 : /100 | S7: Général : /250
A8: AIGUILLON MAXIME | B8: U.A COGNAC | C8: 2009 | D8: 9 ou 11 | E8: 86 | F8: 45 | G8: 65 | H8: =IF(ROUNDUP(AVERAGE(E8:G8),0)>50,50,ROUNDUP(AVERAGE(E8:G8),0)) -> 50 | I8: 1.767389901 | J8: 1.934284078 | K8: =CalNoteVit($I$6,C8,I8,J8) -> 10 | L8: 6.10855185 | M8: 6.202660314 | N8: =CalNoteVit($L$6,C8,L8,M8) -> 6 | O8: 1300 | P8: =CalNoteEndurance(O8) -> 20 | Q8: 37 | R8: 98 | S8: =SUM(H8,K8,N8,P8,Q8,R8) -> 221
A9: BANLIER PIERRE | B9: CHAMOIS | C9: 2009 | D9: Milieu/Att | E9: 91 | F9: 43 | G9: 31 | H9: 50 | I9: 1.759787956 | J9: 2.160564688 | K9: =CalNoteVit($I$6,C9,I9,J9) -> 10 | L9: 6.638810848 | M9: 5.539705635 | N9: =CalNoteVit($L$6,C9,L9,M9) -> 18 | O9: 730 | P9: =CalNoteEndurance(O9) -> 9.25 | Q9: 49 | R9: 83 | S9: 219.25
A10: BARBEAU BENJAMIN | B10: USRV | C10: 2009 | D10: Lib. 5 | E10: 57 | F10: 57 | G10: 63 | H10: 50 | I10: 1.872080152 | J10: 1.677054226 | K10: =CalNoteVit($I$6,C10,I10,J10) -> 10 | L10: 5.697258342 | M10: 5.780019953 | N10: =CalNoteVit($L$6,C10,L10,M10) -> 14 | O10: 590 | P10: =CalNoteEndurance(O10) -> 5.75 | Q10: 41 | R10: 89 | S10: 209.75
A11: BATISSE ANTOINE | B11: LALEU LA ROCHELLE | C11: 2009 | D11: Milieu D | E11: 39 | F11: 36 | G11: 44 | H11: 40 | I11: 1.659781327 | J11: 2.111386349 | K11: =CalNoteVit($I$6,C11,I11,J11) -> 10 | L11: 5.078706662 | M11: 5.651272152 | N11: =CalNoteVit($L$6,C11,L11,M11) -> 20 | O11: 1020 | P11: =CalNoteEndurance(O11) -> 16.5 | Q11: 41 | R11: 81 | S11: 208.5
A12: BIZEAU THOMAS | B12: ES SAINTES | C12: 2009 | D12: Att/Milieu | E12: 95 | F12: 76 | G12: 41 | H12: 50 | I12: 1.608704249 | J12: 1.689509801 | K12: =CalNoteVit($I$6,C12,I12,J12) -> 10 | L12: 5.942600821 | M12: 5.150961476 | N12: =CalNoteVit($L$6,C12,L12,M12) -> 20 | O12: 770 | P12: =CalNoteEndurance(O12) -> 10.25 | Q12: 33 | R12: 80 | S12: 203.25
A13: BOLLEY PAUL | B13: ST SEBASTIEN/L | C13: 2009 | D13: 10 | E13: 59 | F13: 13 | G13: 67 | H13: 47 | I13: 1.990344893 | J13: 2.029182915 | K13: =CalNoteVit($I$6,C13,I13,J13) -> 0 | L13: 5.168782915 | M13: 6.670743119 | N13: =CalNoteVit($L$6,C13,L13,M13) -> 20 | O13: 880 | P13: =CalNoteEndurance(O13) -> 13 | Q13: 34 | R13: 84 | S13: 198
A14: BONNIN VICTOR | B14: BRESSUIRE | C14: 2009 | D14: Milieu G | E14: 79 | F14: 29 | G14: 28 | H14: 46 | I14: 1.77678022 | J14: 2.180328527 | K14: =CalNoteVit($I$6,C14,I14,J14) -> 10 | L14: 6.71217285 | M14: 6.021869281 | N14: =CalNoteVit($L$6,C14,L14,M14) -> 8 | O14: 560 | P14: =CalNoteEndurance(O14) -> 5 | Q14: 34 | R14: 94 | S14: 197
A15: BOUDAUD QUENTIN | B15: SO CHATELLERAULT | C15: 2009 | D15: Milieu O | E15: 65 | F15: 16 | G15: 57 | H15: 46 | I15: 1.817622067 | J15: 2.00724656 | K15: =CalNoteVit($I$6,C15,I15,J15) -> 8 | L15: 5.205370584 | M15: 5.918853194 | N15: =CalNoteVit($L$6,C15,L15,M15) -> 20 | O15: 1080 | P15: =CalNoteEndurance(O15) -> 18 | Q15: 18 | R15: 85 | S15: 195
A16: BOUTIN CLEMENT | B16: SO CHATELLERAULT | C16: 2009 | D16: Avant | E16: 46 | F16: 12 | G16: 25 | H16: 28 | I16: 2.072030205 | J16: 1.723588881 | K16: =CalNoteVit($I$6,C16,I16,J16) -> 10 | L16: 6.193057312 | M16: 5.779793019 | N16: =CalNoteVit($L$6,C16,L16,M16) -> 12 | O16: 1160 | P16: =CalNoteEndurance(O16) -> 20 | Q16: 35 | R16: 87 | S16: 192
A17: CAVIER MAXIME | B17: CHAMOIS | C17: 2009 | D17: AR. CENT | E17: 60 | F17: 91 | G17: 27 | H17: 50 | I17: 2.156931254 | J17: 1.823281823 | K17: =CalNoteVit($I$6,C17,I17,J17) -> 8 | L17: 5.612285056 | M17: 6.36591481 | N17: =CalNoteVit($L$6,C17,L17,M17) -> 16 | O17: 550 | P17: =CalNoteEndurance(O17) -> 4.75 | Q17: 33 | R17: 78 | S17: 189.75
A18: CLOCHARD Julien | B18: LALEU | C18: 2009 | D18: 8 ou 6 | E18: 62 | F18: 30 | G18: 71 | H18: 50 | I18: 1.677630435 | J18: 1.61111012 | K18: =CalNoteVit($I$6,C18,I18,J18) -> 10 | L18: 5.439534943 | M18: 5.445276145 | N18: =CalNoteVit($L$6,C18,L18,M18) -> 20 | O18: 560 | P18: =CalNoteEndurance(O18) -> 5 | Q18: 37 | R18: 67 | S18: 189
A19: DARBON ALEXANDRE | B19: OLERON F.C. | C19: 2009 | D19: Défenseur | E19: 61 | F19: 69 | G19: 77 | H19: 50 | I19: 1.848262812 | J19: 1.823758483 | K19: =CalNoteVit($I$6,C19,I19,J19) -> 8 | L19: 5.176722714 | M19: 5.420875622 | N19: =CalNoteVit($L$6,C19,L19,M19) -> 20 | O19: 760 | P19: =CalNoteEndurance(O19) -> 10 | Q19: 21 | R19: 80 | S19: 189
A20: DAUBIN QUENTIN | B20: STADE NAZAIRIEN | C20: 2009 | D20: Miieu D | E20: 66 | F20: 77 | G20: 30 | H20: 50 | I20: 2.171577664 | J20: 1.743616051 | K20: =CalNoteVit($I$6,C20,I20,J20) -> 10 | L20: 5.681700768 | M20: 6.170234765 | N20: =CalNoteVit($L$6,C20,L20,M20) -> 14 | O20: 680 | P20: =CalNoteEndurance(O20) -> 8 | Q20: 31 | R20: 72 | S20: 185
A21: DESNOYER MAXIME | B21: OLERON F.C. | C21: 2009 | D21: ATT 9 ou 7 | E21: 94 | F21: 59 | G21: 27 | H21: 50 | I21: 1.9534704 | J21: 2.078114457 | K21: =CalNoteVit($I$6,C21,I21,J21) -> 2 | L21: 6.59310432 | M21: 5.079239816 | N21: =CalNoteVit($L$6,C21,L21,M21) -> 20 | O21: 700 | P21: =CalNoteEndurance(O21) -> 8.5 | Q21: 46 | R21: 55 | S21: 181.5
A22: DESSENEUX LUCAS | B22: ROYAN | C22: 2009 | D22: LatG/M G | E22: 16 | F22: 23 | G22: 47 | H22: 29 | I22: 1.80099834 | J22: 1.629839504 | K22: =CalNoteVit($I$6,C22,I22,J22) -> 10 | L22: 6.445647552 | M22: 5.360742756 | N22: =CalNoteVit($L$6,C22,L22,M22) -> 20 | O22: 960 | P22: =CalNoteEndurance(O22) -> 15 | Q22: 12 | R22: 91 | S22: 177
A23: DOS REIS CORENTIN | B23: THOUARS | C23: 2009 | D23: M. G ou Dt | E23: 48 | F23: 60 | G23: 86 | H23: 50 | I23: 2.151501333 | J23: 2.182345406 | K23: =CalNoteVit($I$6,C23,I23,J23) -> 0 | L23: 5.212641169 | M23: 6.073946799 | N23: =CalNoteVit($L$6,C23,L23,M23) -> 20 | O23: 950 | P23: =CalNoteEndurance(O23) -> 14.75 | Q23: 31 | R23: 61 | S23: 176.75
A24: DUPONT MATTHIEU | B24: ST SEBASTIEN/L | C24: 2009 | E24: 46 | F24: 98 | G24: 69 | H24: 50 | I24: 1.865738848 | J24: 1.915107564 | K24: =CalNoteVit($I$6,C24,I24,J24) -> 6 | L24: 6.437850296 | M24: 6.735487303 | N24: =CalNoteVit($L$6,C24,L24,M24) -> 0 | O24: 1140 | P24: =CalNoteEndurance(O24) -> 19.5 | Q24: 40 | R24: 61 | S24: 176.5
A25: FAURE MAXIME | B25: PERIGNY | C25: 2009 | D25: M. G ou Dt | E25: 95 | F25: 98 | G25: 81 | H25: 50 | I25: 1.669231733 | J25: 1.986430059 | K25: =CalNoteVit($I$6,C25,I25,J25) -> 10 | L25: 5.18399578 | M25: 6.555221072 | N25: =CalNoteVit($L$6,C25,L25,M25) -> 20 | O25: 1040 | P25: =CalNoteEndurance(O25) -> 17 | Q25: 42 | R25: 37 | S25: 176
A26: KIM JUN-HO | B26: POITIERS ST ELOI | C26: 2009 | D26: ATTAQ. | E26: 41 | F26: 59 | G26: 58 | H26: 50 | I26: 1.722421446 | J26: 1.677837343 | K26: =CalNoteVit($I$6,C26,I26,J26) -> 10 | L26: 5.687255186 | M26: 6.071151453 | N26: =CalNoteVit($L$6,C26,L26,M26) -> 14 | O26: 430 | P26: =CalNoteEndurance(O26) -> 1.75 | Q26: 24 | R26: 75 | S26: 174.75
A27: JOVER JULIEN | B27: COGNAC | C27: 2009 | D27: 8,6,3 | E27: 14 | F27: 88 | G27: 86 | H27: 50 | I27: 2.109284062 | J27: 1.662410242 | K27: =CalNoteVit($I$6,C27,I27,J27) -> 10 | L27: 6.586960151 | M27: 6.424345146 | N27: =CalNoteVit($L$6,C27,L27,M27) -> 0 | O27: 360 | P27: =CalNoteEndurance(O27) -> 0 | Q27: 27 | R27: 86 | S27: 173
A28: LARAT THIBAULT | B28: UESM MONTMORILLON | C28: 2009 | D28: 6 ou 10 | E28: 21 | F28: 35 | G28: 65 | H28: 41 | I28: 1.600036784 | J28: 1.835066911 | K28: =CalNoteVit($I$6,C28,I28,J28) -> 10 | L28: 6.382987029 | M28: 5.732501666 | N28: =CalNoteVit($L$6,C28,L28,M28) -> 14 | O28: 510 | P28: =CalNoteEndurance(O28) -> 3.75 | Q28: 12 | R28: 91 | S28: 171.75
A29: LAVAUD CORENTIN | B29: MONTMORILLON | C29: 2009 | D29: AD OU MD | E29: 68 | F29: 62 | G29: 39 | H29: 50 | I29: 1.95723952 | J29: 1.824342805 | K29: =CalNoteVit($I$6,C29,I29,J29) -> 8 | L29: 5.94958575 | M29: 5.150647636 | N29: =CalNoteVit($L$6,C29,L29,M29) -> 20 | O29: 970 | P29: =CalNoteEndurance(O29) -> 15.25 | Q29: 15 | R29: 61 | S29: 169.25
A30: LUCAS QUENTIN | B30: OREE DE L'AUTIZE | C30: 2009 | D30: M. Off | E30: 66 | F30: 27 | G30: 34 | H30: 43 | I30: 2.003039723 | J30: 2.09665003 | K30: =CalNoteVit($I$6,C30,I30,J30) -> 0 | L30: 6.659278847 | M30: 6.749857764 | N30: =CalNoteVit($L$6,C30,L30,M30) -> 0 | O30: 330 | P30: =CalNoteEndurance(O30) -> 0 | Q30: 49 | R30: 74 | S30: 166
A31: MECHAIN VICTOR | B31: DH GIEN | C31: 2009 | D31: Ailier/MG | E31: 26 | F31: 22 | G31: 92 | H31: 47 | I31: 1.632595866 | J31: 1.613714383 | K31: =CalNoteVit($I$6,C31,I31,J31) -> 10 | L31: 6.440075748 | M31: 5.458148133 | N31: =CalNoteVit($L$6,C31,L31,M31) -> 18 | O31: 440 | P31: =CalNoteEndurance(O31) -> 2 | Q31: 31 | R31: 57 | S31: 165
A32: MICHAUD DAMIEN | B32: U.S. AULNAY | C32: 2009 | D32: MILIEU | E32: 83 | F32: 39 | G32: 81 | H32: 50 | I32: 2.015614404 | J32: 1.929905404 | K32: =CalNoteVit($I$6,C32,I32,J32) -> 4 | L32: 5.64497146 | M32: 6.326088554 | N32: =CalNoteVit($L$6,C32,L32,M32) -> 16 | O32: 340 | P32: =CalNoteEndurance(O32) -> 0 | Q32: 32 | R32: 54 | S32: 156
A33: MICHEL THIBAULT | B33: AIFFRES | C33: 2009 | D33: Attaquant | E33: 25 | F33: 92 | G33: 77 | H33: 50 | I33: 1.694612571 | J33: 2.112316934 | K33: =CalNoteVit($I$6,C33,I33,J33) -> 10 | L33: 5.455725897 | M33: 6.250909715 | N33: =CalNoteVit($L$6,C33,L33,M33) -> 18 | O33: 770 | P33: =CalNoteEndurance(O33) -> 10.25 | Q33: 12 | R33: 54 | S33: 154.25
A34: MONTILLAUD QUENTIN | B34: BOURG/GIRONDE | C34: 2009 | D34: ATTAQ. | E34: 86 | F34: 21 | G34: 46 | H34: 50 | I34: 1.778797339 | J34: 1.889156314 | K34: =CalNoteVit($I$6,C34,I34,J34) -> 10 | L34: 6.195449262 | M34: 6.744718033 | N34: =CalNoteVit($L$6,C34,L34,M34) -> 4 | O34: 640 | P34: =CalNoteEndurance(O34) -> 7 | Q34: 32 | R34: 48 | S34: 151
A35: PELLERIN JEREMY | B35: LIMOGES FC | C35: 2009 | D35: ATTAQ. | E35: 30 | F35: 23 | G35: 95 | H35: 50 | I35: 1.856754987 | J35: 1.773323784 | K35: =CalNoteVit($I$6,C35,I35,J35) -> 10 | L35: 6.652968859 | M35: 5.344823015 | N35: =CalNoteVit($L$6,C35,L35,M35) -> 20 | O35: 1040 | P35: =CalNoteEndurance(O35) -> 17 | Q35: 27 | R35: 22 | S35: 146
A36: PELLETIER ANTONIN | B36: PARTHENAY/VIENNAY | C36: 2009 | D36: 10 | E36: 98 | F36: 89 | G36: 59 | H36: 50 | I36: 1.65615113 | J36: 1.625498971 | K36: =CalNoteVit($I$6,C36,I36,J36) -> 10 | L36: 6.437070726 | M36: 6.04611268 | N36: =CalNoteVit($L$6,C36,L36,M36) -> 8 | O36: 810 | P36: =CalNoteEndurance(O36) -> 11.25 | Q36: 33 | R36: 32 | S36: 144.25
A37: PERDRIX SIMON | B37: ES SAINTES | C37: 2009 | D37: 6 ou 10 | E37: 45 | F37: 73 | G37: 24 | H37: 48 | I37: 2.066137354 | J37: 2.163733815 | K37: =CalNoteVit($I$6,C37,I37,J37) -> 0 | L37: 5.759375888 | M37: 6.451231709 | N37: =CalNoteVit($L$6,C37,L37,M37) -> 0 | O37: 580 | P37: =CalNoteEndurance(O37) -> 5.5 | Q37: 45 | R37: 43 | S37: 141.5
A38: POUMERIE THOMAS | B38: SO AGEN | C38: 2009 | D38: Milieu G | E38: 76 | F38: 84 | G38: 52 | H38: 50 | I38: 1.712241065 | J38: 2.166723422 | K38: =CalNoteVit($I$6,C38,I38,J38) -> 10 | L38: 5.918058079 | M38: 5.178145073 | N38: =CalNoteVit($L$6,C38,L38,M38) -> 20 | O38: 680 | P38: =CalNoteEndurance(O38) -> 8 | Q38: 19 | R38: 32 | S38: 139
A39: POUPIN THEO | B39: ENTENTE ST MAURICE | C39: 2009 | D39: MILIEU O | E39: 60 | F39: 61 | G39: 18 | H39: 47 | I39: 1.913990878 | J39: 1.671829191 | K39: =CalNoteVit($I$6,C39,I39,J39) -> 10 | L39: 5.289980652 | M39: 5.261506697 | N39: =CalNoteVit($L$6,C39,L39,M39) -> 20 | O39: 310 | P39: =CalNoteEndurance(O39) -> 0 | Q39: 39 | R39: 22 | S39: 138
A40: PRAUD ALEXANDRE | B40: ROCHEFORT | C40: 2009 | D40: ATTAQ. | E40: 80 | F40: 30 | G40: 91 | H40: 50 | I40: 1.920624545 | J40: 1.975001331 | K40: =CalNoteVit($I$6,C40,I40,J40) -> 4 | L40: 5.063858385 | M40: 5.415966608 | N40: =CalNoteVit($L$6,C40,L40,M40) -> 20 | O40: 700 | P40: =CalNoteEndurance(O40) -> 8.5 | Q40: 35 | R40: 20 | S40: 137.5
A41: QUEREL BASTIEN | B41: LIMOGES FC | C41: 2009 | D41: 10 | E41: 90 | F41: 89 | G41: 27 | H41: 50 | I41: 1.689492761 | J41: 1.735981721 | K41: =CalNoteVit($I$6,C41,I41,J41) -> 10 | L41: 6.568461531 | M41: 5.860025117 | N41: =CalNoteVit($L$6,C41,L41,M41) -> 10 | O41: 690 | P41: =CalNoteEndurance(O41) -> 8.25 | Q41: 21 | R41: 35 | S41: 134.25
A42: RABOUAM THEO | B42: THOUARS | C42: 2009 | D42: Milieu | E42: 13 | F42: 64 | G42: 52 | H42: 43 | I42: 1.948219593 | J42: 2.188205693 | K42: =CalNoteVit($I$6,C42,I42,J42) -> 2 | L42: 6.415821851 | M42: 6.193155108 | N42: =CalNoteVit($L$6,C42,L42,M42) -> 4 | O42: 800 | P42: =CalNoteEndurance(O42) -> 11 | Q42: 41 | R42: 33 | S42: 134
A43: RAISON MATHIEU | B43: CHAMOIS | C43: 2009 | D43: Milieu D | E43: 49 | F43: 78 | G43: 44 | H43: 50 | I43: 1.666439094 | J43: 1.943235357 | K43: =CalNoteVit($I$6,C43,I43,J43) -> 10 | L43: 5.979002363 | M43: 6.483616717 | N43: =CalNoteVit($L$6,C43,L43,M43) -> 8 | O43: 910 | P43: =CalNoteEndurance(O43) -> 13.75 | Q43: 23 | R43: 29 | S43: 133.75
A44: RHINO FLORENTIN | B44: CHAMOIS | C44: 2009 | D44: DD ou MD | E44: 43 | F44: 67 | G44: 66 | H44: 50 | I44: 2.172896422 | J44: 1.960344825 | K44: =CalNoteVit($I$6,C44,I44,J44) -> 2 | L44: 6.344922585 | M44: 6.157308616 | N44: =CalNoteVit($L$6,C44,L44,M44) -> 0 | O44: 640 | P44: =CalNoteEndurance(O44) -> 7 | Q44: 40 | R44: 24 | S44: 123
A45: ROUFFIGNAT DIMITRI | B45: VFF FONTENAY LE CTE | C45: 2009 | D45: 9 | E45: 95 | F45: 25 | G45: 39 | H45: 50 | I45: 1.980902876 | J45: 2.031394339 | K45: =CalNoteVit($I$6,C45,I45,J45) -> 0 | L45: 6.733469022 | M45: 6.670755256 | N45: =CalNoteVit($L$6,C45,L45,M45) -> 0 | O45: 870 | P45: =CalNoteEndurance(O45) -> 12.75 | Q45: 16 | R45: 44 | S45: 122.75
A46: ROY STEVEN | B46: F.C. VRIGNES | C46: 2009 | D46: 10 | E46: 33 | F46: 13 | G46: 88 | H46: 45 | I46: 1.772163322 | J46: 1.987989217 | K46: =CalNoteVit($I$6,C46,I46,J46) -> 10 | L46: 5.824603151 | M46: 5.882695016 | N46: =CalNoteVit($L$6,C46,L46,M46) -> 12 | O46: 740 | P46: =CalNoteEndurance(O46) -> 9.5 | Q46: 14 | R46: 28 | S46: 118.5
A47: SAILLOL BASTIEN | B47: PERIGNY | C47: 2009 | D47: AR. OU M | E47: 58 | F47: 67 | G47: 85 | H47: 50 | I47: 2.033195994 | J47: 2.107587888 | K47: =CalNoteVit($I$6,C47,I47,J47) -> 0 | L47: 6.523688266 | M47: 6.412702258 | N47: =CalNoteVit($L$6,C47,L47,M47) -> 0 | O47: 660 | P47: =CalNoteEndurance(O47) -> 7.5 | Q47: 10 | R47: 43 | S47: 110.5
A48: SUIRE STEVEN | B48: MAUZE | C48: 2009 | D48: AD OU MD | E48: 70 | F48: 49 | G48: 22 | H48: 47 | I48: 2.158048469 | J48: 1.934603331 | K48: =CalNoteVit($I$6,C48,I48,J48) -> 0 | L48: 6.469239327 | M48: 6.056434751 | N48: =CalNoteVit($L$6,C48,L48,M48) -> 0 | O48: 350 | P48: =CalNoteEndurance(O48) -> 0 | Q48: 15 | R48: 39 | S48: 101
A49: TARENT YOHAN | B49: AIFFRES | C49: 2009 | D49: Déf. Centr | E49: 30 | F49: 44 | G49: 93 | H49: 50 | I49: 2.068459002 | J49: 2.123897027 | K49: =CalNoteVit($I$6,C49,I49,J49) -> 0 | L49: 6.753257798 | M49: 6.566877737 | N49: =CalNoteVit($L$6,C49,L49,M49) -> 0 | O49: 430 | P49: =CalNoteEndurance(O49) -> 1.75 | Q49: 23 | R49: 26 | S49: 100.75
A50: TRANCHANT BASTIEN | B50: CHAMOIS | C50: 2009 | D50: Milieu D | E50: 34 | F50: 45 | G50: 16 | H50: 32 | I50: 1.730996715 | J50: 2.117904143 | K50: =CalNoteVit($I$6,C50,I50,J50) -> 10 | L50: 5.39268968 | M50: 5.531664096 | N50: =CalNoteVit($L$6,C50,L50,M50) -> 20 | O50: 540 | P50: =CalNoteEndurance(O50) -> 4.5 | Q50: 10 | R50: 24 | S50: 100.5

Sheet ClassementFinal
D3: Date du jour : | E3: =TODAY() -> 2025-04-24 | G3: CLASSEMENTS
A7: Joueurs 2007-2008 | E7: Joueurs 2009-2010 | I7: Gardiens
A8: Classement | B8: Nom Prénom | C8: CLUB | D8: Points | E8: Classement | F8: Nom Prénom | G8: CLUB | H8: Points | I8: Classement | J8: Nom Prénom | K8: CLUB | L8: Points
A9: 1 | B9: CAPRADO REMY | C9: ROYAN | D9: 175 | E9: 1 | F9: AIGUILLON MAXIME | G9: U.A COGNAC | H9: 221 | I9: 1 | J9: BLANCHE QUENTIN | K9: VAL D'ENVIGNE | L9: 202
A10: 2 | B10: GUACIDE GUILLAUME | C10: SU AGEN | D10: 163.25 | E10: 2 | F10: BANLIER PIERRE | G10: CHAMOIS | H10: 219.25 | I10: 2 | J10: BOBE DE BELLEVILLE LUCAS | K10: COGNAC UAC | L10: 199
A11: 3 | B11: MAROLLEAU ALEXANDRE | C11: ES SAINTES FOOT | D11: 116 | E11: 3 | F11: BARBEAU BENJAMIN | G11: USRV | H11: 209.75 | I11: 3 | J11: HERVOUET LOUIS | K11: LA BAULE/ LE P. | L11: 193
A12: 4 | B12: NASSIRI SYLVAIN | C12: NIORT ST FLORENT | D12: 97 | E12: 4 | F12: BATISSE ANTOINE | G12: LALEU LA ROCHELLE | H12: 208.5 | I12: 4 | J12: JUIN CLEMENT | K12: ST LIGUAIRE NIORT | L12: 168
E13: 5 | F13: BIZEAU THOMAS | G13: ES SAINTES | H13: 203.25 | I13: 5 | J13: POGGI ANTOINE | K13: AVAILLES EN CH. | L13: 161
E14: 6 | F14: BOLLEY PAUL | G14: ST SEBASTIEN/L | H14: 198 | I14: 6 | J14: ROQUIER PAUL | K14: CHAMOIS | L14: 159
E15: 7 | F15: BONNIN VICTOR | G15: BRESSUIRE | H15: 197 | I15: 7 | J15: SIMON JONATHAN | K15: CHAMOIS | L15: 149
E16: 8 | F16: BOUDAUD QUENTIN | G16: SO CHATELLERAULT | H16: 195 | I16: 8 | J16: TESSIER SIMON | K16: AZAY CHEILLE 37 | L16: 137
E17: 9 | F17: BOUTIN CLEMENT | G17: SO CHATELLERAULT | H17: 192 | I17: 9 | J17: TURGNE NICOLAS | K17: AIFFRES | L17: 118
E18: 10 | F18: CAVIER MAXIME | G18: CHAMOIS | H18: 189.75
E19: 11 | F19: CLOCHARD Julien | G19: LALEU | H19: 189
E20: 12 | F20: DARBON ALEXANDRE | G20: OLERON F.C. | H20: 189
E21: 13 | F21: DAUBIN QUENTIN | G21: STADE NAZAIRIEN | H21: 185
E22: 14 | F22: DESNOYER MAXIME | G22: OLERON F.C. | H22: 181.5
E23: 15 | F23: DESSENEUX LUCAS | G23: ROYAN | H23: 177
E24: 16 | F24: DOS REIS CORENTIN | G24: THOUARS | H24: 176.75
E25: 17 | F25: DUPONT MATTHIEU | G25: ST SEBASTIEN/L | H25: 176.5
E26: 18 | F26: FAURE MAXIME | G26: PERIGNY | H26: 176
E27: 19 | F27: KIM JUN-HO | G27: POITIERS ST ELOI | H27: 174.75
E28: 20 | F28: JOVER JULIEN | G28: COGNAC | H28: 173
E29: 21 | F29: LARAT THIBAULT | G29: UESM MONTMORILLON | H29: 171.75
E30: 22 | F30: LAVAUD CORENTIN | G30: MONTMORILLON | H30: 169.25
E31: 23 | F31: LUCAS QUENTIN | G31: OREE DE L'AUTIZE | H31: 166
E32: 24 | F32: MECHAIN VICTOR | G32: DH GIEN | H32: 165
E33: 25 | F33: MICHAUD DAMIEN | G33: U.S. AULNAY | H33: 156
E34: 26 | F34: MICHEL THIBAULT | G34: AIFFRES | H34: 154.25
E35: 27 | F35: MONTILLAUD QUENTIN | G35: BOURG/GIRONDE | H35: 151
E36: 28 | F36: PELLERIN JEREMY | G36: LIMOGES FC | H36: 146
E37: 29 | F37: PELLETIER ANTONIN | G37: PARTHENAY/VIENNAY | H37: 144.25
E38: 30 | F38: PERDRIX SIMON | G38: ES SAINTES | H38: 141.5
E39: 31 | F39: POUMERIE THOMAS | G39: SO AGEN | H39: 139
E40: 32 | F40: POUPIN THEO | G40: ENTENTE ST MAURICE | H40: 138
E41: 33 | F41: PRAUD ALEXANDRE | G41: ROCHEFORT | H41: 137.5
E42: 34 | F42: QUEREL BASTIEN | G42: LIMOGES FC | H42: 134.25
E43: 35 | F43: RABOUAM THEO | G43: THOUARS | H43: 134
E44: 36 | F44: RAISON MATHIEU | G44: CHAMOIS | H44: 133.75
E45: 37 | F45: RHINO FLORENTIN | G45: CHAMOIS | H45: 123
E46: 38 | F46: ROUFFIGNAT DIMITRI | G46: VFF FONTENAY LE CTE | H46: 122.75
E47: 39 | F47: ROY STEVEN | G47: F.C. VRIGNES | H47: 118.5
E48: 40 | F48: SAILLOL BASTIEN | G48: PERIGNY | H48: 110.5
E49: 41 | F49: SUIRE STEVEN | G49: MAUZE | H49: 101
E50: 42 | F50: TARENT YOHAN | G50: AIFFRES | H50: 100.75
E51: 43 | F51: TRANCHANT BASTIEN | G51: CHAMOIS | H51: 100.5

Sheet CHAMOIS
A1: Equipe : CHAMOIS
E3: Jonglerie | G3: Note | H3: 10 mètres | J3: Note | K3: 40 mètres | M3: Note | N3: Test Spec | O3: Jeu à 11 | P3: Général
A4: Nom Prénom | B4: CLUB | C4: Année | D4: Poste | E4: PG | F4: PD | G4: Jonglerie : /50 | H4: Essai 1 | I4: Essai 2 | J4: 10 mètres : /10 | K4: Essai 1 | L4: Essai 2 | M4: 40 mètres : /20 | N4: Test Spec : /120 | O4: Jeu à 11 : /50 | P4: Général : /250
A5: ROQUIER PAUL | B5: CHAMOIS | C5: 2009 | D5: GARDIEN | E5: 45 | F5: 15 | G5: 30 | H5: 1.769761431 | I5: 1.959098696 | J5: 10 | K5: 6.064467611 | L5: 6.642524089 | M5: 6 | N5: 91 | O5: 22 | P5: 159
A6: SIMON JONATHAN | B6: CHAMOIS | C6: 2009 | D6: GARDIEN | E6: 44 | F6: 9 | G6: 27 | H6: 1.834161338 | I6: 2.175038034 | J6: 0 | K6: 6.603137474 | L6: 6.538788458 | M6: 0 | N6: 83 | O6: 39 | P6: 149
E9: Jonglerie | H9: Note | I9: 10 mètres | K9: Note | L9: 40 mètres | N9: Note | O9: Endurance | P9: Note | Q9: Jeu réduit | R9: Jeu à 11 | S9: Général
A10: Nom Prénom | B10: CLUB | C10: Année | D10: Poste | E10: PG | F10: PD | G10: T | H10: Jonglerie : /50 | I10: Essai 1 | J10: Essai 2 | K10: 10 mètres : /10 | L10: Essai 1 | M10: Essai 2 | N10: 40 mètres : /20 | O10: Distance | P10: Distance : /20 | Q10: Jeu réduit : /50 | R10: Jeu à 11 : /100 | S10: Général : /250
A11: BANLIER PIERRE | B11: CHAMOIS | C11: 2009 | D11: Milieu/Att | E11: 91 | F11: 43 | G11: 31 | H11: 50 | I11: 1.759787956 | J11: 2.160564688 | K11: 10 | L11: 6.638810848 | M11: 5.539705635 | N11: 18 | O11: 730 | P11: 9.25 | Q11: 49 | R11: 83 | S11: 219.25
A12: CAVIER MAXIME | B12: CHAMOIS | C12: 2009 | D12: AR. CENT | E12: 60 | F12: 91 | G12: 27 | H12: 50 | I12: 2.156931254 | J12: 1.823281823 | K12: 8 | L12: 5.612285056 | M12: 6.36591481 | N12: 16 | O12: 550 | P12: 4.75 | Q12: 33 | R12: 78 | S12: 189.75
A13: RAISON MATHIEU | B13: CHAMOIS | C13: 2009 | D13: Milieu D | E13: 49 | F13: 78 | G13: 44 | H13: 50 | I13: 1.666439094 | J13: 1.943235357 | K13: 10 | L13: 5.979002363 | M13: 6.483616717 | N13: 8 | O13: 910 | P13: 13.75 | Q13: 23 | R13: 29 | S13: 133.75
A14: RHINO FLORENTIN | B14: CHAMOIS | C14: 2009 | D14: DD ou MD | E14: 43 | F14: 67 | G14: 66 | H14: 50 | I14: 2.172896422 | J14: 1.960344825 | K14: 2 | L14: 6.344922585 | M14: 6.157308616 | N14: 0 | O14: 640 | P14: 7 | Q14: 40 | R14: 24 | S14: 123
A15: TRANCHANT BASTIEN | B15: CHAMOIS | C15: 2009 | D15: Milieu D | E15: 34 | F15: 45 | G15: 16 | H15: 32 | I15: 1.730996715 | J15: 2.117904143 | K15: 10 | L15: 5.39268968 | M15: 5.531664096 | N15: 20 | O15: 540 | P15: 4.5 | Q15: 10 | R15: 24 | S15: 100.5
